[Event "*** Titled Tuesday Blitz"]
[Site "Chess.com"]
[Date "2021.03.02"]
[Round "1"]
[White "UCantHandleDenker"]
[Black "LEGENYA1998"]
[Result "1-0"]
[WhiteElo "2552"]
[BlackElo "2243"]
[TimeControl "180+1"]
[EndTime "10:06:31 PST"]
[Termination "UCantHandleDenker won by resignation"]

1. Nf3 {[%clk 0:03:00.6]} 1... Nf6 {[%clk 0:02:59]} 2. d3 {[%clk 0:03:01.5]}
2... c6 {[%clk 0:02:57.9]} 3. g3 {[%clk 0:03:02.4]} 3... d5 {[%clk 0:02:57.8]}
4. Bg2 {[%clk 0:03:02.7]} 4... g6 {[%clk 0:02:57.9]} 5. O-O {[%clk 0:03:03.6]}
5... Bg7 {[%clk 0:02:58.1]} 6. Nbd2 {[%clk 0:03:04.2]} 6... O-O {[%clk 0:02:58]}
7. e4 {[%clk 0:03:03.6]} 7... Bg4 {[%clk 0:02:57.9]} 8. h3 {[%clk 0:03:03.1]}
8... Bxf3 {[%clk 0:02:58.1]} 9. Qxf3 {[%clk 0:03:03.6]} 9... e6 {[%clk
0:02:55.8]} 10. Qe2 {[%clk 0:03:03.1]} 10... Nbd7 {[%clk 0:02:54.6]} 11. Re1
{[%clk 0:03:03.1]} 11... e5 {[%clk 0:02:40.6]} 12. Nf3 {[%clk 0:02:52.8]} 12...
Re8 {[%clk 0:02:38.6]} 13. b3 {[%clk 0:02:35.1]} 13... d4 {[%clk 0:02:29.3]} 14.
a4 {[%clk 0:02:32.4]} 14... c5 {[%clk 0:02:24]} 15. Nd2 {[%clk 0:02:30.7]} 15...
Rb8 {[%clk 0:02:15.6]} 16. Nc4 {[%clk 0:02:29.8]} 16... Qc7 {[%clk 0:02:15.6]}
17. Rf1 {[%clk 0:02:28]} 17... b6 {[%clk 0:02:11.7]} 18. Qe1 {[%clk 0:02:11.7]}
18... a6 {[%clk 0:02:08.5]} 19. f4 {[%clk 0:02:06.7]} 19... b5 {[%clk
0:02:01.2]} 20. axb5 {[%clk 0:02:03.8]} 20... axb5 {[%clk 0:02:01.3]} 21. Nxe5
{[%clk 0:02:03.7]} 21... Nxe5 {[%clk 0:02:01.5]} 22. fxe5 {[%clk 0:02:04.2]}
22... Nd7 {[%clk 0:01:54.8]} 23. Bf4 {[%clk 0:01:38.3]} 23... Nxe5 {[%clk
0:01:50.6]} 24. Qa5 {[%clk 0:01:29.7]} 24... Qd7 {[%clk 0:01:28.4]} 25. Qa7
{[%clk 0:01:24.8]} 25... Qxa7 {[%clk 0:01:18.3]} 26. Rxa7 {[%clk 0:01:23.7]}
26... f6 {[%clk 0:01:09.4]} 27. Bxe5 {[%clk 0:01:18.5]} 27... Rxe5 {[%clk
0:01:04.3]} 28. Rfa1 {[%clk 0:01:13]} 28... h5 {[%clk 0:00:58.3]} 29. h4 {[%clk
0:01:09.2]} 29... Bh6 {[%clk 0:00:58.3]} 30. Rc7 {[%clk 0:01:05.7]} 30... Be3+
{[%clk 0:00:46.8]} 31. Kh2 {[%clk 0:01:05.5]} 31... Bh6 {[%clk 0:00:46.9]} 32.
Ra6 {[%clk 0:01:04.1]} 32... Bg7 {[%clk 0:00:45]} 33. Bh3 {[%clk 0:01:02.8]}
33... b4 {[%clk 0:00:43.3]} 34. Be6+ {[%clk 0:01:02]} 34... Kh8 {[%clk
0:00:42.5]} 35. Bf7 {[%clk 0:00:59.5]} 35... Kh7 {[%clk 0:00:40.6]} 36. Bc4
{[%clk 0:00:58.4]} 36... Kh6 {[%clk 0:00:39.6]} 37. Kh3 {[%clk 0:00:56.9]} 37...
Rh8 {[%clk 0:00:35.7]} 38. Rac6 {[%clk 0:00:50.2]} 38... Bf8 {[%clk 0:00:34.9]}
39. Bd5 {[%clk 0:00:45.3]} 39... Bd6 {[%clk 0:00:32.4]} 40. Rxd6 {[%clk
0:00:43.6]} 40... f5 {[%clk 0:00:32.3]} 41. exf5 {[%clk 0:00:39.7]} 41... Rxf5
{[%clk 0:00:32.6]} 42. Be4 {[%clk 0:00:39.8]} 1-0

[Event "*** Titled Tuesday Blitz"]
[Site "Chess.com"]
[Date "2021.03.02"]
[Round "1"]
[White "Kostukov_Alex"]
[Black "Aygehovit1992"]
[Result "0-1"]
[WhiteElo "2317"]
[BlackElo "2623"]
[TimeControl "180+1"]
[EndTime "10:06:34 PST"]
[Termination "Aygehovit1992 won on time"]

1. g3 {[%clk 0:02:52.8]} 1... d5 {[%clk 0:02:57.7]} 2. Bg2 {[%clk 0:02:51.5]}
2... e5 {[%clk 0:02:57.9]} 3. c4 {[%clk 0:02:47]} 3... d4 {[%clk 0:02:58.1]} 4.
d3 {[%clk 0:02:46.5]} 4... g6 {[%clk 0:02:57.1]} 5. Nf3 {[%clk 0:02:47.1]} 5...
Bg7 {[%clk 0:02:57.2]} 6. O-O {[%clk 0:02:46.5]} 6... Nc6 {[%clk 0:02:56]} 7. a3
{[%clk 0:02:37.4]} 7... a5 {[%clk 0:02:56]} 8. Re1 {[%clk 0:02:19.6]} 8... Nge7
{[%clk 0:02:54.3]} 9. Bg5 {[%clk 0:01:57.1]} 9... h6 {[%clk 0:02:53.7]} 10. Bxe7
{[%clk 0:01:52.9]} 10... Qxe7 {[%clk 0:02:54.6]} 11. Nbd2 {[%clk 0:01:52.5]}
11... O-O {[%clk 0:02:53.4]} 12. e3 {[%clk 0:01:52.5]} 12... dxe3 {[%clk
0:02:53.2]} 13. Rxe3 {[%clk 0:01:51.8]} 13... Bf5 {[%clk 0:02:48.5]} 14. Ne4
{[%clk 0:01:45.3]} 14... Rad8 {[%clk 0:02:47.2]} 15. Qb3 {[%clk 0:01:42.8]}
15... b6 {[%clk 0:02:46.1]} 16. Qb5 {[%clk 0:01:37.7]} 16... Nd4 {[%clk
0:02:44.7]} 17. Nxd4 {[%clk 0:01:36.1]} 17... Rxd4 {[%clk 0:02:45.6]} 18. c5
{[%clk 0:01:25.8]} 18... Bd7 {[%clk 0:02:41.9]} 19. Qa6 {[%clk 0:01:15.4]} 19...
f5 {[%clk 0:02:39.8]} 20. Nc3 {[%clk 0:01:14.9]} 20... Qxc5 {[%clk 0:02:37.8]}
21. Rc1 {[%clk 0:01:03.6]} 21... f4 {[%clk 0:02:29.4]} 22. Ree1 {[%clk
0:00:48.1]} 22... fxg3 {[%clk 0:02:28.1]} 23. hxg3 {[%clk 0:00:45.9]} 23... Bc8
{[%clk 0:01:50.3]} 24. Qa7 {[%clk 0:00:40.4]} 24... Rd7 {[%clk 0:01:13]} 25. Ne4
{[%clk 0:00:36.8]} 25... Qe7 {[%clk 0:01:12.6]} 26. Rc6 {[%clk 0:00:25.6]} 26...
Qd8 {[%clk 0:01:00.8]} 27. Rec1 {[%clk 0:00:22.1]} 27... Rff7 {[%clk 0:00:56.2]}
28. Rxg6 {[%clk 0:00:14.1]} 28... Rxd3 {[%clk 0:00:53.5]} 29. Rgc6 {[%clk
0:00:08.8]} 29... Rd1+ {[%clk 0:00:52.8]} 30. Kh2 {[%clk 0:00:06.7]} 30... Rxc1
{[%clk 0:00:51.1]} 31. Rxc1 {[%clk 0:00:07.6]} 31... c5 {[%clk 0:00:51.3]} 32.
Qb8 {[%clk 0:00:03.4]} 32... Qc7 {[%clk 0:00:48.9]} 0-1

[Event "*** Titled Tuesday Blitz"]
[Site "Chess.com"]
[Date "2021.03.02"]
[Round "1"]
[White "ukchessbomber"]
[Black "Lyschko"]
[Result "1-0"]
[WhiteElo "2523"]
[BlackElo "2165"]
[TimeControl "180+1"]
[EndTime "10:06:34 PST"]
[Termination "ukchessbomber won on time"]

1. d4 {[%clk 0:03:00.9]} 1... d6 {[%clk 0:02:59.1]} 2. c4 {[%clk 0:02:56.2]}
2... e5 {[%clk 0:02:58.8]} 3. d5 {[%clk 0:02:57.1]} 3... f5 {[%clk 0:02:57.9]}
4. e4 {[%clk 0:02:57.7]} 4... fxe4 {[%clk 0:02:56.4]} 5. Nc3 {[%clk 0:02:57.8]}
5... Nf6 {[%clk 0:02:56.3]} 6. Nge2 {[%clk 0:02:58.3]} 6... Bf5 {[%clk
0:02:55.9]} 7. Ng3 {[%clk 0:02:58.5]} 7... Bg6 {[%clk 0:02:54.7]} 8. Qb3 {[%clk
0:02:57.7]} 8... Nbd7 {[%clk 0:02:47.3]} 9. Qxb7 {[%clk 0:02:52.6]} 9... Rb8
{[%clk 0:02:37.9]} 10. Qxa7 {[%clk 0:02:49.6]} 10... Ra8 {[%clk 0:02:35.2]} 11.
Qb7 {[%clk 0:02:47.3]} 11... Rb8 {[%clk 0:02:33.5]} 12. Qc6 {[%clk 0:02:44.7]}
12... Rb6 {[%clk 0:02:31.1]} 13. Qa4 {[%clk 0:02:44.6]} 13... Be7 {[%clk
0:02:26.4]} 14. Be2 {[%clk 0:02:42.9]} 14... O-O {[%clk 0:02:25.9]} 15. O-O
{[%clk 0:02:18.6]} 15... Nc5 {[%clk 0:02:21.9]} 16. Qd1 {[%clk 0:02:18.7]} 16...
Qb8 {[%clk 0:02:05.6]} 17. Nb5 {[%clk 0:02:05.2]} 17... Nd3 {[%clk 0:01:49.2]}
18. Be3 {[%clk 0:01:54.9]} 18... Rb7 {[%clk 0:01:33.7]} 19. Nxe4 {[%clk
0:01:39.9]} 19... Nxb2 {[%clk 0:01:16.5]} 20. Nxf6+ {[%clk 0:01:39.8]} 20...
Bxf6 {[%clk 0:01:16.2]} 21. Qb3 {[%clk 0:01:25.1]} 21... e4 {[%clk 0:01:14.4]}
22. a4 {[%clk 0:01:22.4]} 22... Nd3 {[%clk 0:01:10]} 23. Ra2 {[%clk 0:01:19.7]}
23... Be5 {[%clk 0:01:02.8]} 24. a5 {[%clk 0:01:17.5]} 24... Qd8 {[%clk
0:00:59.4]} 25. a6 {[%clk 0:01:10.2]} 25... Rxb5 {[%clk 0:00:55.5]} 26. cxb5
{[%clk 0:01:02.1]} 26... Qh4 {[%clk 0:00:44]} 27. g3 {[%clk 0:01:00]} 27... Qh3
{[%clk 0:00:41.3]} 28. Bxd3 {[%clk 0:00:59.5]} 28... exd3 {[%clk 0:00:38.4]} 29.
f4 {[%clk 0:01:00]} 29... Be4 {[%clk 0:00:25]} 30. a7 {[%clk 0:00:53.8]} 30...
d2 {[%clk 0:00:18.8]} 31. Rxd2 {[%clk 0:00:51.4]} 31... Bxf4 {[%clk 0:00:05.4]}
32. Rxf4 {[%clk 0:00:49.6]} 32... Rxf4 {[%clk 0:00:04]} 33. a8=Q+ {[%clk
0:00:48.3]} 1-0

[Event "*** Titled Tuesday Blitz"]
[Site "Chess.com"]
[Date "2021.03.02"]
[Round "1"]
[White "dodorox"]
[Black "maxip32"]
[Result "0-1"]
[WhiteElo "2167"]
[BlackElo "2521"]
[TimeControl "180+1"]
[EndTime "10:06:34 PST"]
[Termination "maxip32 won on time"]

1. d4 {[%clk 0:02:57.6]} 1... Nf6 {[%clk 0:02:58.7]} 2. c4 {[%clk 0:02:57.2]}
2... g6 {[%clk 0:02:55.7]} 3. Nc3 {[%clk 0:02:55.9]} 3... Bg7 {[%clk 0:02:55.3]}
4. e4 {[%clk 0:02:53.7]} 4... d6 {[%clk 0:02:55.4]} 5. Nf3 {[%clk 0:02:52.9]}
5... O-O {[%clk 0:02:55.2]} 6. h3 {[%clk 0:02:53.1]} 6... e5 {[%clk 0:02:54]} 7.
d5 {[%clk 0:02:53.7]} 7... Nh5 {[%clk 0:02:51.3]} 8. g3 {[%clk 0:02:52.9]} 8...
f5 {[%clk 0:02:38.9]} 9. exf5 {[%clk 0:02:52.4]} 9... gxf5 {[%clk 0:02:39.8]}
10. Nh4 {[%clk 0:02:52.7]} 10... Nf4 {[%clk 0:02:37.5]} 11. Be3 {[%clk
0:02:44.1]} 11... Na6 {[%clk 0:02:34]} 12. Qd2 {[%clk 0:02:38.6]} 12... Ng6
{[%clk 0:02:29.1]} 13. Nxg6 {[%clk 0:02:20.7]} 13... hxg6 {[%clk 0:02:28.6]} 14.
h4 {[%clk 0:01:57.9]} 14... Kf7 {[%clk 0:02:18.3]} 15. h5 {[%clk 0:01:51.1]}
15... Rh8 {[%clk 0:02:15.5]} 16. Be2 {[%clk 0:01:32.3]} 16... Bf6 {[%clk
0:02:00]} 17. hxg6+ {[%clk 0:01:26.5]} 17... Kxg6 {[%clk 0:01:59.5]} 18. O-O-O
{[%clk 0:01:17.2]} 18... Bd7 {[%clk 0:01:51]} 19. Rxh8 {[%clk 0:00:35.8]} 19...
Qxh8 {[%clk 0:01:50.2]} 20. Bf3 {[%clk 0:00:36.3]} 20... Qg7 {[%clk 0:01:38.1]}
21. Rh1 {[%clk 0:00:33.9]} 21... Rh8 {[%clk 0:01:36.7]} 22. Qd1 {[%clk
0:00:23.9]} 22... Rxh1 {[%clk 0:01:28.3]} 23. Qxh1 {[%clk 0:00:22.4]} 23... Qh7
{[%clk 0:01:27.1]} 24. Qxh7+ {[%clk 0:00:20.1]} 24... Kxh7 {[%clk 0:01:28]} 25.
Kd2 {[%clk 0:00:17.3]} 25... b6 {[%clk 0:01:12.2]} 26. a3 {[%clk 0:00:16.4]}
26... Nc5 {[%clk 0:01:02.4]} 27. Bxc5 {[%clk 0:00:07.3]} 27... dxc5 {[%clk
0:00:58.8]} 28. Nb5 {[%clk 0:00:07.7]} 28... e4 {[%clk 0:00:56.7]} 29. Be2
{[%clk 0:00:06.4]} 29... Bxb2 {[%clk 0:00:53]} 30. a4 {[%clk 0:00:05]} 30... Bd4
{[%clk 0:00:49.4]} 31. Nxa7 {[%clk 0:00:02.4]} 31... Bxf2 {[%clk 0:00:45.8]} 0-1

[Event "*** Titled Tuesday Blitz"]
[Site "Chess.com"]
[Date "2021.03.02"]
[Round "1"]
[White "skoularikii"]
[Black "HouseOfDurin"]
[Result "1-0"]
[WhiteElo "2518"]
[BlackElo "2158"]
[TimeControl "180+1"]
[EndTime "10:06:34 PST"]
[Termination "skoularikii won on time"]

1. e4 {[%clk 0:03:00.9]} 1... c5 {[%clk 0:02:59.8]} 2. Nf3 {[%clk 0:03:01]} 2...
Nc6 {[%clk 0:03:00.1]} 3. Nc3 {[%clk 0:03:00.2]} 3... e5 {[%clk 0:02:59.8]} 4.
Bc4 {[%clk 0:02:59.2]} 4... g6 {[%clk 0:02:59.4]} 5. h4 {[%clk 0:02:57]} 5... h6
{[%clk 0:02:58.9]} 6. d3 {[%clk 0:02:55.7]} 6... Bg7 {[%clk 0:02:58.3]} 7. Be3
{[%clk 0:02:54.4]} 7... d6 {[%clk 0:02:58]} 8. Qd2 {[%clk 0:02:53.8]} 8... Nge7
{[%clk 0:02:56.5]} 9. a4 {[%clk 0:02:47.7]} 9... f5 {[%clk 0:02:45.5]} 10. g3
{[%clk 0:02:16.8]} 10... Qa5 {[%clk 0:02:19.2]} 11. Nb5 {[%clk 0:02:12.6]} 11...
Qxd2+ {[%clk 0:02:18.2]} 12. Nxd2 {[%clk 0:02:07.3]} 12... Kd7 {[%clk
0:02:13.5]} 13. a5 {[%clk 0:02:01.4]} 13... a6 {[%clk 0:01:57.8]} 14. Nc3 {[%clk
0:02:01.4]} 14... Nd4 {[%clk 0:01:49.4]} 15. Bxd4 {[%clk 0:02:01.4]} 15... exd4
{[%clk 0:01:28.2]} 16. Na4 {[%clk 0:02:01.6]} 16... Kc6 {[%clk 0:01:21.2]} 17.
O-O-O {[%clk 0:01:44.1]} 17... Rb8 {[%clk 0:01:20]} 18. Nb6 {[%clk 0:01:42.8]}
18... Bd7 {[%clk 0:01:04.8]} 19. Rhe1 {[%clk 0:01:40.1]} 19... Rhf8 {[%clk
0:00:51]} 20. exf5 {[%clk 0:01:36.4]} 20... Nxf5 {[%clk 0:00:48.8]} 21. Bd5+
{[%clk 0:01:32.3]} 21... Kc7 {[%clk 0:00:48.4]} 22. g4 {[%clk 0:01:32.3]} 22...
Rbe8 {[%clk 0:00:21.3]} 23. gxf5 {[%clk 0:01:30.8]} 23... Bxf5 {[%clk
0:00:20.4]} 24. Ne4 {[%clk 0:01:20.9]} 24... Be5 {[%clk 0:00:13.2]} 25. Rg1
{[%clk 0:01:16.3]} 25... h5 {[%clk 0:00:12.3]} 26. Kb1 {[%clk 0:01:10.8]} 26...
Bg4 {[%clk 0:00:11.4]} 27. Rde1 {[%clk 0:01:10.4]} 27... Bf4 {[%clk 0:00:11.1]}
28. Ng5 {[%clk 0:00:57]} 28... Bd2 {[%clk 0:00:09.6]} 29. Rxe8 {[%clk
0:00:50.3]} 29... Rxe8 {[%clk 0:00:10.5]} 30. Be4 {[%clk 0:00:50.3]} 30... Bf5
{[%clk 0:00:06.5]} 31. Nd5+ {[%clk 0:00:48.7]} 31... Kc6 {[%clk 0:00:04.8]} 32.
Nf6+ {[%clk 0:00:47.4]} 1-0

[Event "*** Titled Tuesday Blitz"]
[Site "Chess.com"]
[Date "2021.03.02"]
[Round "1"]
[White "rpragchess"]
[Black "Tekushka"]
[Result "1-0"]
[WhiteElo "2866"]
[BlackElo "2441"]
[TimeControl "180+1"]
[EndTime "10:06:39 PST"]
[Termination "rpragchess won on time"]

1. c4 {[%clk 0:02:59.8]} 1... e5 {[%clk 0:02:59.4]} 2. Nc3 {[%clk 0:03:00.5]}
2... Bb4 {[%clk 0:02:58.4]} 3. Nd5 {[%clk 0:02:59.6]} 3... a5 {[%clk 0:02:57.6]}
4. Nf3 {[%clk 0:02:57.7]} 4... e4 {[%clk 0:02:30.3]} 5. Nd4 {[%clk 0:02:57.5]}
5... Nf6 {[%clk 0:02:11.2]} 6. Qc2 {[%clk 0:02:52.3]} 6... O-O {[%clk
0:01:49.6]} 7. Nxf6+ {[%clk 0:02:49.6]} 7... Qxf6 {[%clk 0:01:49.6]} 8. Qxe4
{[%clk 0:02:50.3]} 8... Nc6 {[%clk 0:01:45]} 9. Nf3 {[%clk 0:02:47.3]} 9... d6
{[%clk 0:01:42.6]} 10. a3 {[%clk 0:02:30.6]} 10... Bc5 {[%clk 0:01:41.3]} 11. e3
{[%clk 0:02:30.6]} 11... Bd7 {[%clk 0:01:24.8]} 12. Bd3 {[%clk 0:02:26.7]} 12...
g6 {[%clk 0:01:23.5]} 13. Qh4 {[%clk 0:02:22.5]} 13... Qg7 {[%clk 0:01:19.9]}
14. O-O {[%clk 0:02:19.3]} 14... Ne5 {[%clk 0:01:01.1]} 15. Be2 {[%clk
0:02:16.7]} 15... Bc6 {[%clk 0:00:57.6]} 16. d4 {[%clk 0:02:13.4]} 16... Nxf3+
{[%clk 0:00:56.7]} 17. Bxf3 {[%clk 0:02:13.7]} 17... Bxf3 {[%clk 0:00:56.4]} 18.
gxf3 {[%clk 0:02:14.6]} 18... Bb6 {[%clk 0:00:54.7]} 19. Bd2 {[%clk 0:02:14.9]}
19... c6 {[%clk 0:00:54.2]} 20. Bc3 {[%clk 0:02:15]} 20... d5 {[%clk 0:00:52.5]}
21. cxd5 {[%clk 0:02:15.2]} 21... cxd5 {[%clk 0:00:52.7]} 22. Rad1 {[%clk
0:02:15.7]} 22... Rfe8 {[%clk 0:00:51.2]} 23. Rfe1 {[%clk 0:02:15.4]} 23... Re6
{[%clk 0:00:48.9]} 24. e4 {[%clk 0:02:10]} 24... Rae8 {[%clk 0:00:48.6]} 25. e5
{[%clk 0:02:10.3]} 25... g5 {[%clk 0:00:36.7]} 26. Qg4 {[%clk 0:02:00.1]} 26...
Qg6 {[%clk 0:00:33.4]} 27. h4 {[%clk 0:01:30.1]} 27... gxh4 {[%clk 0:00:29.4]}
28. Kh2 {[%clk 0:01:30.3]} 28... h5 {[%clk 0:00:06.8]} 29. Qxh4 {[%clk
0:01:28.4]} 29... Qf5 {[%clk 0:00:04.3]} 30. Rg1+ {[%clk 0:01:28.4]} 30... Rg6
{[%clk 0:00:04.7]} 31. Rxg6+ {[%clk 0:01:28.9]} 31... fxg6 {[%clk 0:00:04.9]}
32. Rg1 {[%clk 0:01:29.6]} 32... Kf7 {[%clk 0:00:04.1]} 33. Rg3 {[%clk 0:01:13]}
33... Re6 {[%clk 0:00:04.3]} 34. Kg2 {[%clk 0:01:10.3]} 34... Kg7 {[%clk
0:00:03.8]} 35. Bd2 {[%clk 0:01:06.9]} 35... Kf7 {[%clk 0:00:03.6]} 36. Be3
{[%clk 0:01:07]} 36... Qd3 {[%clk 0:00:03.1]} 37. Rg5 {[%clk 0:01:02.6]} 37...
Qc2 {[%clk 0:00:02.8]} 38. Qf4+ {[%clk 0:01:02.7]} 38... Kg7 {[%clk 0:00:02.2]}
39. Qg3 {[%clk 0:01:01.5]} 39... Bd8 {[%clk 0:00:01.7]} 40. Rxh5 {[%clk
0:01:01.3]} 1-0

[Event "*** Titled Tuesday Blitz"]
[Site "Chess.com"]
[Date "2021.03.02"]
[Round "1"]
[White "anon481216"]
[Black "gemarin"]
[Result "1-0"]
[WhiteElo "2482"]
[BlackElo "1905"]
[TimeControl "180+1"]
[EndTime "10:06:40 PST"]
[Termination "anon481216 won on time"]

1. d4 {[%clk 0:02:57.8]} 1... d5 {[%clk 0:02:30.8]} 2. c4 {[%clk 0:02:56.6]}
2... c6 {[%clk 0:02:30.2]} 3. Nf3 {[%clk 0:02:57]} 3... Nf6 {[%clk 0:02:30]} 4.
Nc3 {[%clk 0:02:57.6]} 4... e6 {[%clk 0:02:29.1]} 5. Bg5 {[%clk 0:02:57.8]} 5...
h6 {[%clk 0:02:28.6]} 6. Bh4 {[%clk 0:02:57.6]} 6... dxc4 {[%clk 0:02:16.8]} 7.
e4 {[%clk 0:02:54.6]} 7... g5 {[%clk 0:02:17.1]} 8. Bg3 {[%clk 0:02:55.2]} 8...
b5 {[%clk 0:02:16.7]} 9. Be2 {[%clk 0:02:53.9]} 9... Bg7 {[%clk 0:02:11.8]} 10.
e5 {[%clk 0:02:36.5]} 10... Nd5 {[%clk 0:02:09.9]} 11. a4 {[%clk 0:02:33.6]}
11... Nxc3 {[%clk 0:02:04]} 12. bxc3 {[%clk 0:02:32.9]} 12... Bb7 {[%clk
0:02:03]} 13. h4 {[%clk 0:02:29]} 13... a6 {[%clk 0:01:53.1]} 14. hxg5 {[%clk
0:02:22.4]} 14... hxg5 {[%clk 0:01:52]} 15. Rxh8+ {[%clk 0:02:22.3]} 15... Bxh8
{[%clk 0:01:52]} 16. Nd2 {[%clk 0:02:21.2]} 16... c5 {[%clk 0:01:44.6]} 17. Bf3
{[%clk 0:02:05.9]} 17... Nc6 {[%clk 0:01:29.3]} 18. Ne4 {[%clk 0:02:01.7]} 18...
Kf8 {[%clk 0:01:07.2]} 19. Nxc5 {[%clk 0:02:00.8]} 19... Qc8 {[%clk 0:00:59.4]}
20. Qd2 {[%clk 0:01:41.9]} 20... g4 {[%clk 0:00:54]} 21. Bxg4 {[%clk 0:01:23]}
21... Ne7 {[%clk 0:00:50.4]} 22. Nxb7 {[%clk 0:01:19.2]} 22... Qxb7 {[%clk
0:00:48.5]} 23. Bf3 {[%clk 0:01:14.2]} 23... Nd5 {[%clk 0:00:47]} 24. Bh4 {[%clk
0:00:59.4]} 24... Bg7 {[%clk 0:00:43.5]} 25. Bf6 {[%clk 0:00:58.4]} 25... Rc8
{[%clk 0:00:41.8]} 26. Qg5 {[%clk 0:00:54.2]} 26... Bxf6 {[%clk 0:00:36.7]} 27.
exf6 {[%clk 0:00:54]} 27... Ke8 {[%clk 0:00:12.3]} 28. Qg8+ {[%clk 0:00:53.4]}
28... Kd7 {[%clk 0:00:13.2]} 29. Qxf7+ {[%clk 0:00:53.4]} 29... Kc6 {[%clk
0:00:11.7]} 30. Qxe6+ {[%clk 0:00:52.7]} 30... Kc7 {[%clk 0:00:12.6]} 31. Qf7+
{[%clk 0:00:47.1]} 31... Kb6 {[%clk 0:00:07.8]} 32. Qxb7+ {[%clk 0:00:46.9]}
32... Kxb7 {[%clk 0:00:08.7]} 33. Bxd5+ {[%clk 0:00:47.1]} 33... Kb6 {[%clk
0:00:09.6]} 34. axb5 {[%clk 0:00:46.2]} 34... Re8+ {[%clk 0:00:08.9]} 35. Kd2
{[%clk 0:00:45.8]} 1-0

[Event "*** Titled Tuesday Blitz"]
[Site "Chess.com"]
[Date "2021.03.02"]
[Round "1"]
[White "Susal_De_Silva"]
[Black "tteshan"]
[Result "1-0"]
[WhiteElo "2657"]
[BlackElo "2344"]
[TimeControl "180+1"]
[EndTime "10:06:45 PST"]
[Termination "Susal_De_Silva won by resignation"]

1. e4 {[%clk 0:03:00.9]} 1... c5 {[%clk 0:02:59.2]} 2. Nf3 {[%clk 0:03:01]} 2...
Nc6 {[%clk 0:02:57.1]} 3. Bb5 {[%clk 0:03:01]} 3... e6 {[%clk 0:02:56.2]} 4. O-O
{[%clk 0:03:00.5]} 4... Nge7 {[%clk 0:02:56]} 5. Re1 {[%clk 0:03:00.8]} 5... a6
{[%clk 0:02:55.4]} 6. Bf1 {[%clk 0:03:01.3]} 6... d5 {[%clk 0:02:55.9]} 7. exd5
{[%clk 0:03:01.9]} 7... Nxd5 {[%clk 0:02:56.3]} 8. Nc3 {[%clk 0:03:02.8]} 8...
Nxc3 {[%clk 0:02:50.7]} 9. bxc3 {[%clk 0:03:03.7]} 9... Be7 {[%clk 0:02:50]} 10.
d4 {[%clk 0:03:03.8]} 10... O-O {[%clk 0:02:48.3]} 11. g3 {[%clk 0:03:03.8]}
11... b6 {[%clk 0:02:45]} 12. Bg2 {[%clk 0:03:03]} 12... Bb7 {[%clk 0:02:45.6]}
13. Rb1 {[%clk 0:03:00.4]} 13... Rc8 {[%clk 0:02:39.6]} 14. Be3 {[%clk
0:02:55.8]} 14... cxd4 {[%clk 0:02:27.9]} 15. Nxd4 {[%clk 0:02:52]} 15... Na5
{[%clk 0:02:09.8]} 16. Bxb7 {[%clk 0:02:39.4]} 16... Nxb7 {[%clk 0:02:10.7]} 17.
Qf3 {[%clk 0:02:34.3]} 17... Nd6 {[%clk 0:02:04.3]} 18. Nc6 {[%clk 0:02:32.2]}
18... Qc7 {[%clk 0:01:53.1]} 19. Nxe7+ {[%clk 0:02:28.2]} 19... Qxe7 {[%clk
0:01:54]} 20. Rxb6 {[%clk 0:02:22.8]} 20... Rxc3 {[%clk 0:01:46.3]} 21. Rxa6
{[%clk 0:02:22.2]} 21... Rxc2 {[%clk 0:01:44.5]} 22. Qd1 {[%clk 0:02:20.5]}
22... Qb7 {[%clk 0:00:58.9]} 23. Rxd6 {[%clk 0:02:18.2]} 23... Rxa2 {[%clk
0:00:58.5]} 24. Rd8 {[%clk 0:02:17.6]} 24... Ra8 {[%clk 0:00:57.3]} 25. Rd7
{[%clk 0:02:15.1]} 25... Qb5 {[%clk 0:00:54.5]} 26. h4 {[%clk 0:02:13.3]} 26...
h6 {[%clk 0:00:51.9]} 27. Qd4 {[%clk 0:02:10.2]} 27... Rfc8 {[%clk 0:00:50.3]}
28. Rd1 {[%clk 0:02:09.4]} 28... Qf5 {[%clk 0:00:42.6]} 29. Qf4 {[%clk
0:02:04.7]} 29... Qg6 {[%clk 0:00:40.7]} 30. Rb7 {[%clk 0:02:00.5]} 30... Rd8
{[%clk 0:00:39.7]} 31. Rxd8+ {[%clk 0:01:46.1]} 31... Rxd8 {[%clk 0:00:40.6]}
32. Rb8 {[%clk 0:01:44.8]} 32... Rxb8 {[%clk 0:00:39.4]} 33. Qxb8+ {[%clk
0:01:45.7]} 33... Kh7 {[%clk 0:00:39.9]} 34. Qf4 {[%clk 0:01:45.8]} 34... Qb1+
{[%clk 0:00:38.6]} 35. Kg2 {[%clk 0:01:46.3]} 35... Qb7+ {[%clk 0:00:37.1]} 36.
Qf3 {[%clk 0:01:46.3]} 36... Qd7 {[%clk 0:00:31.7]} 37. h5 {[%clk 0:01:45.2]}
37... Kg8 {[%clk 0:00:29.4]} 38. Qa8+ {[%clk 0:01:43.3]} 38... Kh7 {[%clk
0:00:28.9]} 39. Qe4+ {[%clk 0:01:44]} 39... Kg8 {[%clk 0:00:28.5]} 40. g4 {[%clk
0:01:42.3]} 40... Qb5 {[%clk 0:00:27.4]} 41. Qa8+ {[%clk 0:01:25.6]} 41... Kh7
{[%clk 0:00:27.1]} 42. Qa7 {[%clk 0:01:18.9]} 42... Qd5+ {[%clk 0:00:26.5]} 43.
Kg3 {[%clk 0:01:18.5]} 43... e5 {[%clk 0:00:22]} 44. Qe7 {[%clk 0:01:13.5]}
44... e4 {[%clk 0:00:20.8]} 45. Kf4 {[%clk 0:01:06.9]} 45... Kg8 {[%clk
0:00:14.6]} 46. Qe8+ {[%clk 0:01:06.4]} 1-0